fUST/lending_fUST_20250723
["ID","MTS","AMOUNT","RATE_DAILY","PERIOD"]
[374138933,1753228243430,-460.0,0.00017345,2]
[374138934,1753228243440,-460.0,0.00017345,2]
[374138935,1753228243450,-1658.01,0.00017345,2]
[374138936,1753228243460,-460.0,0.00017345,2]
[374138937,1753228243470,-460.0,0.00017345,2]
[374138938,1753228243479,-2253.65,0.00017345,2]
[374138939,1753228243490,-1340.59,0.00017345,2]
[374138940,1753228243499,-460.0,0.00017612,2]
[374138941,1753228243509,-460.0,0.00017612,2]
[374138942,1753228243520,-1157.88,0.00017612,2]
[374138943,1753228243530,-460.0,0.00017612,2]
[374138944,1753228243539,-460.0,0.00017613,2]
[374138945,1753228243549,-1954.5,0.00017613,2]
[374138946,1753228243559,-460.0,0.00017613,2]
[374138947,1753228243568,-460.0,0.00017613,2]
[374138948,1753228243577,-1501.49,0.00017613,2]
[374138949,1753228243586,-460.0,0.00017613,2]
[374138950,1753228243595,-1407.56,0.00017613,2]
[374138951,1753228243608,-460.0,0.00017613,2]
[374138952,1753228243617,-460.0,0.00017613,2]
[374138953,1753228243627,-536.89,0.00017613,2]
[374138954,1753228243636,-460.0,0.00017615,2]
[374138955,1753228243647,-460.0,0.00017615,2]
[374138956,1753228243656,-3206.05,0.00017615,2]
[374138957,1753228243665,-460.0,0.00017615,2]
[374138958,1753228243675,-460.0,0.00017615,2]
[374138959,1753228243685,-460.0,0.00017615,2]
[374138960,1753228243695,-460.0,0.00017615,2]
[374138961,1753228243705,-460.0,0.00017615,2]
[374138962,1753228243794,-460.0,0.00017615,2]
[374138963,1753228243815,-1605.14,0.00017615,2]
[374138964,1753228243825,-460.0,0.00017615,2]
[374138965,1753228243836,-460.0,0.00017615,2]
[374138966,1753228243845,-460.95,0.00017615,2]
[374138967,1753228243855,-460.0,0.00017615,2]
[374138968,1753228243864,-460.0,0.00017615,2]
[374138969,1753228243873,-460.0,0.00017615,2]
[374138970,1753228243883,-460.0,0.00017615,2]
[374138971,1753228243892,-460.0,0.00017615,2]
[374138972,1753228243902,-460.0,0.00017615,2]
[374138973,1753228243911,-460.0,0.00017615,2]
[374138974,1753228243921,-460.0,0.00017615,2]
[374138975,1753228243931,-460.0,0.00017615,2]
[374138976,1753228243940,-460.0,0.00017615,2]
[374138977,1753228243949,-896.25,0.00017615,2]
[374138978,1753228243958,-514.65,0.00017615,2]
[374138979,1753228243968,-460.0,0.00017615,2]
[374138980,1753228243977,-460.0,0.00017615,2]
[374138981,1753228243986,-460.0,0.00017615,2]
[374138982,1753228243995,-663.37,0.00017615,2]
[374138983,1753228244005,-460.0,0.00017615,2]
[374138984,1753228244015,-460.0,0.00017615,2]
[374138985,1753228244024,-460.0,0.00017615,2]
[374138986,1753228244033,-460.0,0.00017615,2]
[374138987,1753228244043,-460.0,0.00017615,2]
[374138988,1753228244054,-460.0,0.00017615,2]
[374138989,1753228244064,-460.0,0.00017615,2]
[374138990,1753228244073,-460.0,0.00017617,2]
[374138991,1753228244083,-460.0,0.00017617,2]
[374138992,1753228244092,-460.0,0.00017617,2]
[374138993,1753228244102,-460.0,0.00017617,2]
[374138994,1753228244111,-503.74129179,0.00017617,2]
[374138995,1753228244120,-460.0,0.00017617,2]
[374138996,1753228244131,-460.0,0.00017617,2]
[374138997,1753228244140,-460.0,0.00017619,2]
[374138998,1753228244149,-460.0,0.00017619,2]
[374138999,1753228244159,-2195.3,0.00017619,2]
[374139000,1753228244168,-1358.51,0.00017619,2]
[374139001,1753228244177,-1239.57,0.00017619,2]
[374139002,1753228244186,-460.0,0.00017619,2]
[374139003,1753228244196,-460.0,0.00017619,2]
[374139004,1753228244206,-1658.01,0.00017619,2]
[374139005,1753228244215,-460.0,0.00017619,2]
[374139006,1753228244225,-460.0,0.00017619,2]
[374139007,1753228244235,-2253.65,0.00017619,2]
[374139008,1753228244244,-1340.59,0.00017619,2]
[374139009,1753228244255,-500.0,0.00017621,2]
[374139010,1753228244265,-276.86418696,0.00017621,2]
[374139011,1753228244274,-1000.0,0.00017621,2]
[374139012,1753228244284,-1000.0,0.00017621,2]
[374139013,1753228244293,-1000.0,0.00017621,2]
[374139014,1753228244303,-460.0,0.00017886,2]
[374139015,1753228244312,-460.0,0.00017886,2]
[374139016,1753228244322,-1157.88,0.00017886,2]
[374139017,1753228244332,-460.0,0.00017886,2]
[374139018,1753228244341,-460.0,0.00017887,2]
[374139019,1753228244350,-1954.5,0.00017887,2]
[374139020,1753228244360,-460.0,0.00017887,2]
[374139021,1753228244369,-460.0,0.00017887,2]
[374139022,1753228244378,-1501.49,0.00017887,2]
[374139023,1753228244388,-460.0,0.00017887,2]
[374139024,1753228244398,-1407.56,0.00017887,2]
[374139025,1753228244407,-460.0,0.00017887,2]
[374139026,1753228244416,-460.0,0.00017887,2]
[374139027,1753228244425,-536.89,0.00017887,2]
[374139028,1753228244434,-460.0,0.00017889,2]
[374139029,1753228244443,-460.0,0.00017889,2]
[374139030,1753228244452,-3206.05,0.00017889,2]
[374139031,1753228244461,-460.0,0.00017889,2]
[374139032,1753228244470,-460.0,0.00017889,2]
[374139033,1753228244480,-460.0,0.00017889,2]
[374139034,1753228244489,-460.0,0.00017889,2]
[374139035,1753228244498,-1605.14,0.00017889,2]
[374139036,1753228244508,-460.0,0.00017889,2]
[374139037,1753228244518,-460.0,0.00017889,2]
[374139038,1753228244527,-460.95,0.00017889,2]
[374139039,1753228244537,-460.0,0.00017889,2]
[374139040,1753228244547,-460.0,0.00017889,2]
[374139041,1753228244556,-460.0,0.00017889,2]
[374139042,1753228244565,-460.0,0.00017889,2]
[374139043,1753228244574,-460.0,0.00017889,2]
[374139044,1753228244583,-460.0,0.00017889,2]
[374139045,1753228244592,-460.0,0.00017889,2]
[374139046,1753228244601,-460.0,0.00017889,2]
[374139047,1753228244615,-460.0,0.00017889,2]
[374139048,1753228244624,-460.0,0.00017889,2]
[374139049,1753228244633,-896.25,0.00017889,2]
[374139050,1753228244642,-514.65,0.00017889,2]
[374139051,1753228244652,-460.0,0.00017889,2]
[374139052,1753228244662,-460.0,0.00017889,2]
[374139053,1753228244673,-663.37,0.00017889,2]
[374139054,1753228244683,-460.0,0.00017889,2]
[374139055,1753228244694,-460.0,0.00017889,2]
[374139056,1753228244704,-460.0,0.00017889,2]
[374139057,1753228244714,-460.0,0.00017889,2]
[374139058,1753228244723,-460.0,0.00017889,2]
[374139059,1753228244733,-460.0,0.00017889,2]
[374139060,1753228244742,-460.0,0.00017889,2]
[374139061,1753228244751,-460.0,0.00017891,2]
[374139062,1753228244760,-460.0,0.00017891,2]
[374139063,1753228244770,-460.0,0.00017891,2]
[374139064,1753228244780,-460.0,0.00017891,2]
[374139065,1753228244789,-460.0,0.00017891,2]
[374139066,1753228244798,-157.85716573,0.00017891,2]
[374139067,1753228244808,-211.70711825,0.00017893,2]
[374139068,1753228244817,-460.0,0.00017893,2]
[374139069,1753228244826,-2195.3,0.00017893,2]
[374139070,1753228244836,-1358.51,0.00017893,2]
[374139071,1753228244846,-1239.57,0.00017893,2]
[374139072,1753228244855,-460.0,0.00017893,2]
[374139073,1753228244865,-1658.01,0.00017893,2]
[374139074,1753228244874,-460.0,0.00017893,2]
[374139075,1753228244884,-460.0,0.00017893,2]
[374139076,1753228244894,-2253.65,0.00017893,2]
[374139077,1753228244903,-1340.59,0.00017893,2]
[374139078,1753228244912,-3202.65456413,0.000179,2]
[374139079,1753228244921,-460.0,0.0001816,2]
[374139080,1753228244930,-460.0,0.0001816,2]
[374139081,1753228244939,-1157.88,0.0001816,2]
[374139082,1753228244949,-460.0,0.00018161,2]
[374139083,1753228244958,-1954.5,0.00018161,2]
[374139084,1753228244968,-460.0,0.00018161,2]
[374139085,1753228244977,-460.0,0.00018161,2]
[374139086,1753228244986,-1501.49,0.00018161,2]
[374139087,1753228244995,-460.0,0.00018161,2]
[374139088,1753228245005,-1407.56,0.00018161,2]
[374139089,1753228245014,-460.0,0.00018161,2]
[374139090,1753228245023,-460.0,0.00018161,2]
[374139091,1753228245033,-536.89,0.00018161,2]
[374139092,1753228245043,-460.0,0.00018163,2]
[374139093,1753228245052,-460.0,0.00018163,2]
[374139094,1753228245061,-3206.05,0.00018163,2]
[374139095,1753228245071,-460.0,0.00018163,2]
[374139096,1753228245080,-460.0,0.00018163,2]
[374139097,1753228245090,-460.0,0.00018163,2]
[374139098,1753228245100,-460.0,0.00018163,2]
[374139099,1753228245109,-1605.14,0.00018163,2]
[374139100,1753228245119,-460.0,0.00018163,2]
[374139101,1753228245129,-460.0,0.00018163,2]
[374139102,1753228245138,-460.95,0.00018163,2]
[374139103,1753228245148,-460.0,0.00018163,2]
[374139104,1753228245157,-460.0,0.00018163,2]
[374139105,1753228245166,-460.0,0.00018163,2]
[374139106,1753228245175,-460.0,0.00018163,2]
[374139107,1753228245184,-460.0,0.00018163,2]
[374139108,1753228245194,-460.0,0.00018163,2]
[374139109,1753228245203,-460.0,0.00018163,2]
[374139110,1753228245213,-460.0,0.00018163,2]
[374139111,1753228245222,-460.0,0.00018163,2]
[374139112,1753228245233,-460.0,0.00018163,2]
[374139113,1753228245242,-896.25,0.00018163,2]
[374139114,1753228245251,-514.65,0.00018163,2]
[374139115,1753228245261,-460.0,0.00018163,2]
[374139116,1753228245271,-362.77490137,0.00018163,2]
[374139117,1753228245281,-663.37,0.00018163,2]
[374139118,1753228245291,-460.0,0.00018163,2]
[374139119,1753228245301,-460.0,0.00018163,2]
[374139120,1753228245312,-460.0,0.00018163,2]
[374139121,1753228245322,-287.72589555,0.00018163,2]
[374139122,1753228245331,-460.0,0.00018163,2]
[374139123,1753228245340,-460.0,0.00018163,2]
[374139124,1753228245350,-460.0,0.00018163,2]
[374139125,1753228245359,-460.0,0.00018165,2]
[374139126,1753228245368,-460.0,0.00018165,2]
[374139127,1753228245379,-460.0,0.00018165,2]
[374139128,1753228245388,-460.0,0.00018165,2]
[374139129,1753228245398,-460.0,0.00018167,2]
[374139130,1753228245407,-2195.3,0.00018167,2]
[374139131,1753228245416,-1358.51,0.00018167,2]
[374139132,1753228245426,-1239.57,0.00018167,2]
[374139133,1753228245435,-460.0,0.00018167,2]
[374139134,1753228245444,-1658.01,0.00018167,2]
[374139135,1753228245453,-460.0,0.00018167,2]
[374139136,1753228245463,-243.20177832,0.00018167,2]
[374139137,1753228245472,-2253.65,0.00018167,2]
[374139138,1753228245482,-1340.59,0.00018167,2]
[374139139,1753228245492,-1500.0,0.00018168,2]
[374139140,1753228245502,-500.0,0.00018168,2]
[374139141,1753228245511,-3202.65456407,0.00018176,2]
[374139142,1753228245521,-420.0,0.00018341,2]
[374139143,1753228245531,-300.0,0.00018341,2]
[374139144,1753228245540,-209.0,0.00018341,2]
[374139145,1753228245550,-402.0,0.00018433,2]
[374139146,1753228245560,-460.0,0.00018434,2]
[374139147,1753228245569,-460.0,0.00018434,2]
[374139148,1753228245578,-1157.88,0.00018434,2]
[374139149,1753228245587,-460.0,0.00018435,2]
[374139150,1753228245597,-1954.5,0.00018435,2]
[374139151,1753228245608,-460.0,0.00018435,2]
[374139152,1753228245617,-460.0,0.00018435,2]
[374139153,1753228245627,-1501.49,0.00018435,2]
[374139154,1753228245637,-460.0,0.00018435,2]
[374139155,1753228245647,-1407.56,0.00018435,2]
[374139156,1753228245656,-460.0,0.00018435,2]
[374139157,1753228245666,-460.0,0.00018435,2]
[374139158,1753228245676,-536.89,0.00018435,2]
[374139159,1753228245687,-460.0,0.00018437,2]
[374139160,1753228245698,-460.0,0.00018437,2]
[374139161,1753228245707,-460.0,0.00018437,2]
[374139162,1753228245717,-3206.05,0.00018437,2]
[374139163,1753228245727,-460.0,0.00018437,2]
[374139164,1753228245736,-460.0,0.00018437,2]
[374139166,1753228245745,-460.0,0.00018437,2]
[374139167,1753228245755,-1605.14,0.00018437,2]
[374139168,1753228245764,-460.0,0.00018437,2]
[374139169,1753228245774,-460.0,0.00018437,2]
[374139170,1753228245784,-460.95,0.00018437,2]
[374139171,1753228245793,-460.0,0.00018437,2]
[374139172,1753228245802,-460.0,0.00018437,2]
[374139173,1753228245812,-460.0,0.00018437,2]
[374139174,1753228245821,-460.0,0.00018437,2]
[374139175,1753228245831,-460.0,0.00018437,2]
[374139176,1753228245840,-460.0,0.00018437,2]
[374139177,1753228245849,-460.0,0.00018437,2]
[374139178,1753228245859,-460.0,0.00018437,2]
[374139179,1753228245867,-460.0,0.00018437,2]
[374139180,1753228245877,-896.25,0.00018437,2]
[374139181,1753228245887,-514.65,0.00018437,2]
[374139182,1753228245896,-460.0,0.00018437,2]
[374139183,1753228245907,-663.37,0.00018437,2]
[374139184,1753228245916,-460.0,0.00018437,2]
[374139185,1753228245926,-460.0,0.00018437,2]
[374139186,1753228245936,-460.0,0.00018437,2]
[374139187,1753228245945,-460.0,0.00018437,2]
[374139188,1753228245955,-460.0,0.00018437,2]
[374139189,1753228245964,-460.0,0.00018437,2]
[374139190,1753228245973,-460.0,0.00018439,2]
[374139191,1753228245983,-460.0,0.00018439,2]
[374139192,1753228245992,-460.0,0.00018439,2]
[374139193,1753228246001,-460.0,0.00018439,2]
[374139194,1753228246011,-460.0,0.00018441,2]
[374139195,1753228246020,-2195.3,0.00018441,2]
[374139196,1753228246118,-1358.51,0.00018441,2]
[374139197,1753228246128,-1239.57,0.00018441,2]
[374139198,1753228246137,-552.69380099,0.00018441,2]
[374139199,1753228246146,-1658.01,0.00018441,2]
[374139200,1753228246155,-460.0,0.00018441,2]
[374139201,1753228246165,-2253.65,0.00018441,2]
[374139202,1753228246174,-1340.59,0.00018441,2]
[374139203,1753228246184,-3202.65456407,0.00018452,2]
[374139204,1753228246194,-151.0,0.00018452,2]
[374139205,1753228246204,-3014.33771,0.00018452,2]
[374139206,1753228246213,-214.6393183,0.00018629,2]
[374139207,1753228246222,-160.0,0.0001863,2]
[374139208,1753228246231,-160.0,0.0001863,2]
[374139209,1753228246241,-12619.94447631,0.0001863,2]
[374139210,1753228246250,-215.80012421,0.0001863,2]
[374139211,1753228246260,-839.90542673,0.0001863,2]
[374139212,1753228246270,-476.60259688,0.0001863,2]
[374139213,1753228246279,-160.0,0.0001863,2]
[374139214,1753228246289,-160.0,0.00018636,2]
[374139215,1753228246298,-526.07605158,0.00018636,2]
[374139216,1753228246308,-160.0,0.00018636,2]
[374139217,1753228246318,-160.0,0.00018636,2]
[374139218,1753228246327,-231.06963584,0.00018636,2]
[374139219,1753228246336,-460.0,0.00018708,2]
[374139220,1753228246345,-460.0,0.00018708,2]
[374139221,1753228246355,-1157.88,0.00018708,2]
[374139222,1753228246365,-1954.5,0.00018709,2]
[374139223,1753228246375,-460.0,0.00018709,2]
[374139224,1753228246384,-460.0,0.00018709,2]
[374139225,1753228246395,-1501.49,0.00018709,2]
[374139226,1753228246407,-460.0,0.00018709,2]
[374139227,1753228246416,-1407.56,0.00018709,2]
[374139228,1753228246425,-460.0,0.00018709,2]
[374139229,1753228246436,-460.0,0.00018709,2]
[374139230,1753228246447,-536.89,0.00018709,2]
[374139231,1753228246457,-500.0,0.0001871,2]
[374139232,1753228246467,-762.66446122,0.0001871,2]
[374139233,1753228246477,-227.62857432,0.0001871,2]
[374139234,1753228246486,-762.66446122,0.0001871,2]
[374139235,1753228246496,-500.0,0.0001871,2]
[374139236,1753228246506,-762.66446122,0.0001871,2]
[374139237,1753228246517,-762.66446122,0.0001871,2]
[374139238,1753228246526,-762.66446122,0.0001871,2]
[374139239,1753228246537,-762.66446122,0.0001871,2]
[374139240,1753228246547,-500.0,0.0001871,2]
[374139241,1753228246557,-762.66446122,0.0001871,2]
[374139242,1753228246567,-500.0,0.0001871,2]
[374139243,1753228246576,-762.66446122,0.0001871,2]
[374139244,1753228246586,-762.66446122,0.0001871,2]
[374139245,1753228246595,-762.66446122,0.0001871,2]
[374139246,1753228246605,-762.66446122,0.0001871,2]
[374139247,1753228246617,-762.66446122,0.0001871,2]
[374139248,1753228246626,-762.66446122,0.0001871,2]
[374139249,1753228246636,-460.0,0.00018711,2]
[374139250,1753228246644,-460.0,0.00018711,2]
[374139251,1753228246655,-460.0,0.00018711,2]
[374139252,1753228246664,-3206.05,0.00018711,2]
[374139253,1753228246673,-460.0,0.00018711,2]
[374139254,1753228246683,-460.0,0.00018711,2]
[374139255,1753228246692,-460.0,0.00018711,2]
[374139256,1753228246702,-1605.14,0.00018711,2]
[374139257,1753228246711,-460.0,0.00018711,2]
[374139258,1753228246720,-460.0,0.00018711,2]
[374139259,1753228246730,-460.95,0.00018711,2]
[374139260,1753228246740,-460.0,0.00018711,2]
[374139261,1753228246749,-460.0,0.00018711,2]
[374139262,1753228246759,-207.31938781,0.00018711,2]
[374139263,1753228246769,-460.0,0.00018711,2]
[374139264,1753228246778,-460.0,0.00018711,2]
[374139265,1753228246787,-460.0,0.00018711,2]
[374139266,1753228246797,-460.0,0.00018711,2]
[374139267,1753228246806,-286.58,0.00018711,2]
[374139268,1753228246816,-896.25,0.00018711,2]
[374139269,1753228246825,-514.65,0.00018711,2]
[374139270,1753228246834,-182.63311904,0.00018711,2]
[374139271,1753228246843,-663.37,0.00018711,2]
[374139272,1753228246853,-460.0,0.00018711,2]
[374139273,1753228246863,-164.39,0.00018711,2]
[374139274,1753228246872,-460.0,0.00018711,2]
[374139275,1753228246881,-460.0,0.00018711,2]
[374139276,1753228246890,-460.0,0.00018711,2]
[374139277,1753228246900,-460.0,0.00018711,2]
[374139278,1753228246909,-151.0,0.00018713,2]
[374139279,1753228246918,-460.0,0.00018713,2]
[374139280,1753228246928,-460.0,0.00018713,2]
[374139281,1753228246937,-460.0,0.00018713,2]
[374139282,1753228246946,-582.5,0.00018713,2]
[374139283,1753228246956,-460.0,0.00018715,2]
[374139284,1753228246966,-2195.3,0.00018715,2]
[374139285,1753228246975,-1358.51,0.00018715,2]
[374139286,1753228246984,-1239.57,0.00018715,2]
[374139287,1753228246993,-1658.01,0.00018715,2]
[374139288,1753228247003,-460.0,0.00018715,2]
[374139289,1753228247011,-2253.65,0.00018715,2]
[374139290,1753228247023,-1340.59,0.00018715,2]
[374139291,1753228247032,-179.28953629,0.00018716,2]
[374139292,1753228247041,-3202.65456407,0.00018728,2]
[374139293,1753228247050,-160.0,0.00018752,2]
[374139294,1753228247060,-505.04769188,0.00018773,2]
[374139295,1753228247070,-1676.35072628,0.000189,2]
[374139296,1753228247079,-460.0,0.00018982,2]
[374139297,1753228247088,-460.0,0.00018982,2]
[374139298,1753228247097,-1157.88,0.00018982,2]
[374139299,1753228247107,-1954.5,0.00018983,2]
[374139300,1753228247116,-460.0,0.00018983,2]
[374139301,1753228247126,-460.0,0.00018983,2]
[374139302,1753228247135,-1501.49,0.00018983,2]
[374139303,1753228247144,-460.0,0.00018983,2]
[374139304,1753228247154,-1407.56,0.00018983,2]
[374139305,1753228247164,-460.0,0.00018983,2]
[374139306,1753228247173,-460.0,0.00018983,2]
[374139307,1753228247183,-536.89,0.00018983,2]
[374139308,1753228247193,-460.0,0.00018985,2]
[374139309,1753228247202,-324.11948263,0.00018985,2]
[374139310,1753228247212,-460.0,0.00018985,2]
[374139311,1753228247221,-3206.05,0.00018985,2]
[374139312,1753228247231,-460.0,0.00018985,2]
[374139313,1753228247241,-460.0,0.00018985,2]
[374139314,1753228247251,-460.0,0.00018985,2]
[374139315,1753228247260,-1605.14,0.00018985,2]
[374139316,1753228247271,-460.0,0.00018985,2]
[374139317,1753228247280,-460.0,0.00018985,2]
[374139318,1753228247290,-460.95,0.00018985,2]
[374139319,1753228247298,-460.0,0.00018985,2]
[374139320,1753228247307,-460.0,0.00018985,2]
[374139321,1753228247316,-311.37001493,0.00018985,2]
[374139322,1753228247329,-460.0,0.00018985,2]
[374139323,1753228247338,-460.0,0.00018985,2]
[374139324,1753228247347,-460.0,0.00018985,2]
[374139325,1753228247358,-896.25,0.00018985,2]
[374139326,1753228247367,-514.65,0.00018985,2]
[374139327,1753228247376,-663.37,0.00018985,2]
[374139328,1753228247385,-460.0,0.00018985,2]
[374139329,1753228247394,-460.0,0.00018985,2]
[374139330,1753228247403,-460.0,0.00018985,2]
[374139331,1753228247412,-460.0,0.00018985,2]
[374139332,1753228247422,-460.0,0.00018985,2]
[374139333,1753228247431,-460.0,0.00018987,2]
[374139334,1753228247440,-460.0,0.00018987,2]
[374139335,1753228247450,-460.0,0.00018987,2]
[374139336,1753228247460,-460.0,0.00018989,2]
[374139337,1753228247469,-2195.3,0.00018989,2]
[374139338,1753228247478,-1358.51,0.00018989,2]
[374139339,1753228247487,-1239.57,0.00018989,2]
[374139340,1753228247496,-1658.01,0.00018989,2]
[374139341,1753228247506,-460.0,0.00018989,2]
[374139342,1753228247515,-2253.65,0.00018989,2]
[374139343,1753228247525,-1340.59,0.00018989,2]
[374139344,1753228247535,-3202.65456407,0.00019003,2]
[374139345,1753228247545,-3462.41494755,0.00019129,2]
[374139346,1753228247554,-179.280792,0.00019178,2]
[374139347,1753228247563,-479.64661071,0.00019256,2]
[374139348,1753228247573,-460.0,0.00019256,2]
[374139349,1753228247583,-1157.88,0.00019256,2]
[374139350,1753228247593,-1954.5,0.00019257,2]
[374139351,1753228247603,-460.0,0.00019257,2]
[374139352,1753228247619,-460.0,0.00019257,2]
[374139353,1753228247629,-1501.49,0.00019257,2]
[374139354,1753228247638,-460.0,0.00019257,2]
[374139355,1753228247647,-1407.56,0.00019257,2]
[374139356,1753228247657,-460.0,0.00019257,2]
[374139357,1753228247666,-460.0,0.00019257,2]
[374139358,1753228247675,-536.89,0.00019257,2]
[374139359,1753228247685,-460.0,0.00019259,2]
[374139360,1753228247694,-228.12,0.00019259,2]
[374139361,1753228247704,-3206.05,0.00019259,2]
[374139362,1753228247714,-460.0,0.00019259,2]
[374139363,1753228247724,-460.0,0.00019259,2]
[374139364,1753228247733,-1605.14,0.00019259,2]
[374139365,1753228247742,-460.0,0.00019259,2]
[374139366,1753228247751,-460.0,0.00019259,2]
[374139367,1753228247761,-460.95,0.00019259,2]
[374139368,1753228247771,-460.0,0.00019259,2]
[374139369,1753228247780,-460.0,0.00019259,2]
[374139370,1753228247788,-460.0,0.00019259,2]
[374139371,1753228247798,-460.0,0.00019259,2]
[374139372,1753228247807,-460.0,0.00019259,2]
[374139373,1753228247816,-896.25,0.00019259,2]
[374139374,1753228247826,-514.65,0.00019259,2]
[374139375,1753228247834,-663.37,0.00019259,2]
[374139376,1753228247844,-233.33,0.00019259,2]
[374139377,1753228247853,-460.0,0.00019259,2]
[374139378,1753228247862,-460.0,0.00019259,2]
[374139379,1753228247871,-460.0,0.00019259,2]
[374139380,1753228247880,-460.0,0.00019261,2]
[374139381,1753228247890,-475.39,0.00019261,2]
[374139382,1753228247899,-460.0,0.00019261,2]
[374139383,1753228247909,-460.0,0.00019263,2]
[374139384,1753228247918,-2195.3,0.00019263,2]
[374139385,1753228247928,-1358.51,0.00019263,2]
[374139386,1753228247937,-1239.57,0.00019263,2]
[374139387,1753228247946,-1658.01,0.00019263,2]
[374139388,1753228247955,-460.0,0.00019263,2]
[374139389,1753228247965,-2253.65,0.00019263,2]
[374139390,1753228247974,-1340.59,0.00019263,2]
[374139391,1753228247985,-1293.49,0.00019263,2]
[374139392,1753228247995,-3202.65456407,0.00019279,2]
[374139393,1753228248004,-260.0,0.000193,2]
[374139394,1753228248015,-151.0,0.00019327,2]
[374139395,1753228248026,-151.0,0.00019329,2]
[374139396,1753228248036,-151.0,0.000195,2]
[374139397,1753228248046,-591.76686848,0.0001953,2]
[374139398,1753228248055,-1157.88,0.0001953,2]
[374139399,1753228248065,-1954.5,0.00019531,2]
[374139400,1753228248074,-329.28,0.00019531,2]
[374139401,1753228248083,-460.0,0.00019531,2]
[374139402,1753228248093,-1501.49,0.00019531,2]
[374139403,1753228248102,-432.43,0.00019531,2]
[374139404,1753228248112,-1407.56,0.00019531,2]
[374139405,1753228248121,-460.0,0.00019531,2]
[374139406,1753228248131,-322.12,0.00019531,2]
[374139407,1753228248140,-536.89,0.00019531,2]
[374139408,1753228248150,-460.0,0.00019533,2]
[374139409,1753228248159,-3206.05,0.00019533,2]
[374139410,1753228248168,-460.0,0.00019533,2]
[374139411,1753228248268,-460.0,0.00019533,2]
[374139412,1753228248278,-1605.14,0.00019533,2]
[374139413,1753228248288,-460.0,0.00019533,2]
[374139414,1753228248297,-460.0,0.00019533,2]
[374139415,1753228248307,-460.95,0.00019533,2]
[374139416,1753228248316,-460.0,0.00019533,2]
[374139417,1753228248326,-460.0,0.00019533,2]
[374139418,1753228248336,-460.0,0.00019533,2]
[374139419,1753228248345,-460.0,0.00019533,2]
[374139420,1753228248355,-460.0,0.00019533,2]
[374139421,1753228248364,-896.25,0.00019533,2]
[374139422,1753228248374,-514.65,0.00019533,2]
[374139423,1753228248384,-663.37,0.00019533,2]
[374139424,1753228248393,-460.0,0.00019533,2]
[374139425,1753228248403,-438.35,0.00019533,2]
[374139426,1753228248412,-403.13,0.00019533,2]
[374139427,1753228248422,-460.0,0.00019535,2]
[374139428,1753228248431,-460.0,0.00019535,2]
[374139429,1753228248440,-460.0,0.00019537,2]
[374139430,1753228248450,-2195.3,0.00019537,2]
[374139431,1753228248460,-1358.51,0.00019537,2]
[374139432,1753228248470,-1239.57,0.00019537,2]
[374139433,1753228248480,-1658.01,0.00019537,2]